[Event "FIDE WCCC Girls-12 2024"]
[Site "Montesilvano"]
[Date "2024.11.18"]
[Round "3.39"]
[White "Messali Anger, Ilyana"]
[Black "Yang, Hayeon"]
[Result "1-0"]
[ECO "C78"]
[WhiteElo "1687"]
[BlackElo "1482"]
[PlyCount "79"]
[EventDate "2024.11.18"]
[EventType "swiss"]
[EventCountry "ITA"]
[TimeControl "5400+30"]

1. e4 {[%emt 0:00:07]} e5 {[%emt 0:00:28]} 2. Nf3 {[%emt 0:00:15]} Nc6 {[%emt 0:00:21]} 3. Bb5 {[%emt 0:00:27]} a6 {[%emt 0:00:47]} 4. Ba4 {[%emt 0:00:20]} Nf6 {[%emt 0:00:34]} 5. O-O {[%emt 0:00:38]} b5 {[%emt 0:00:50]} 6. Bb3 {[%emt 0:00:38]} Bc5 {[%emt 0:00:35]} 7. Nxe5 {[%emt 0:07:30]} Nxe5 {[%emt 0:01:58]} 8. d4 {[%emt 0:01:40]} Bxd4 {[%emt 0:01:04]} 9. Qxd4 {[%emt 0:00:53]} Nc6 {[%emt 0:00:50]} 10. Qd3 {[%emt 0:07:14]} d6 {[%emt 0:02:26]} 11. c3 {[%emt 0:06:45]} h6 {[%emt 0:01:38]} 12. Qg3 {[%emt 0:01:40]} g6 {[%emt 0:05:59]} 13. Bd5 {[%emt 0:14:56]} Nxd5 {[%emt 0:02:57]} 14. exd5 {[%emt 0:00:21]} Ne7 {[%emt 0:00:32]} 15. Re1 {[%emt 0:03:42]} Bb7 {[%emt 0:03:01]} 16. Qh4 {[%emt 0:04:40]} Bxd5 {[%emt 0:01:26]} 17. Bg5 {[%emt 0:02:21]} Be6 {[%emt 0:01:58]} 18. Nd2 {[%emt 0:01:43]} Qd7 {[%emt 0:01:12]} 19. Ne4 {[%emt 0:01:17]} O-O-O {[%emt 0:02:00]} 20. Bxe7 {[%emt 0:05:34]} g5 {[%emt 0:01:07]} 21. Qg3 {[%emt 0:01:08]} Qxe7 {[%emt 0:00:33]} 22. a4 {[%emt 0:01:41]} Qd7 {[%emt 0:01:33]} 23. Nf6 {[%emt 0:02:54]} Qc6 {[%emt 0:01:29]} 24. axb5 {[%emt 0:03:22]} Qxb5 {[%emt 0:01:10]} 25. Qf3 {[%emt 0:02:56]} Qb7 {[%emt 0:01:50]} 26. Re4 {[%emt 0:01:36]} Qxb2 {[%emt 0:01:40]} 27. Rea4 {[%emt 0:01:06]} Qb7 {[%emt 0:00:50]} 28. Qg3 {[%emt 0:02:37]} Qb5 {[%emt 0:02:22]} 29. Rxa6 {[%emt 0:01:26]} Bd5 {[%emt 0:02:30]} 30. Qg4+ {[%emt 0:06:43]} Be6 {[%emt 0:01:43]} 31. Qe4 {[%emt 0:04:54]} d5 {[%emt 0:02:41]} 32. Qd4 {[%emt 0:03:10]} c6 {[%emt 0:02:04]} 33. Qe5 {[%emt 0:05:33]} Kb7 {[%emt 0:08:39]} 34. Ra7+ {[%emt 0:00:55]} Kb6 {[%emt 0:02:06]} 35. Qc7+ {[%emt 0:00:36]} Kc5 {[%emt 0:01:05]} 36. R7a5 {[%emt 0:01:37]} Qxa5 {[%emt 0:44:32]} 37. Rxa5+ {[%emt 0:00:26]} Kc4 {[%emt 0:00:00]} 38. Qxc6+ {[%emt 0:01:05]} Kd3 {[%emt 0:00:00]} 39. Qb5+ {[%emt 0:01:01]} Kxc3 {[%emt 0:00:00]} 40. Qc5+ {[%emt 0:03:03]} 1-0

[Event "FIDE WCCC Girls-12 2024"]
[Site "Montesilvano"]
[Date "2024.11.18"]
[Round "3.40"]
[White "Radenkovic, Lena"]
[Black "Prokofieva, Alexandra"]
[Result "1-0"]
[ECO "A07"]
[WhiteElo "1675"]
[BlackElo "1467"]
[PlyCount "121"]
[EventDate "2024.11.18"]
[EventType "swiss"]
[EventCountry "ITA"]
[TimeControl "5400+30"]

1. Nf3 {[%emt 0:00:58]} d5 {[%emt 0:00:12]} 2. g3 {[%emt 0:01:51]} Nc6 {[%emt 0:02:06]} 3. Bg2 {[%emt 0:01:48]} e5 {[%emt 0:00:21]} 4. d3 {[%emt 0:01:18]} Nf6 {[%emt 0:00:43]} 5. O-O {[%emt 0:01:20]} Bc5 {[%emt 0:01:58]} 6. Bg5 {[%emt 0:06:52]} h6 {[%emt 0:00:48]} 7. Bh4 {[%emt 0:01:31]} O-O {[%emt 0:01:48]} 8. Nbd2 {[%emt 0:01:44]} Bf5 {[%emt 0:00:37]} 9. Re1 {[%emt 0:04:21]} Qd6 {[%emt 0:03:45]} 10. e4 {[%emt 0:02:18]} Bh7 {[%emt 0:00:57]} 11. exd5 {[%emt 0:01:59]} Nxd5 {[%emt 0:00:34]} 12. Nc4 {[%emt 0:02:28]} Qd7 {[%emt 0:03:07]} 13. Nfxe5 {[%emt 0:02:55]} Nxe5 {[%emt 0:00:20]} 14. Nxe5 {[%emt 0:00:27]} Qd6 {[%emt 0:04:38]} 15. c3 {[%emt 0:09:55]} f6 {[%emt 0:01:12]} 16. d4 {[%emt 0:03:49]} Bb6 {[%emt 0:03:59]} 17. Nc4 {[%emt 0:01:08]} Qd7 {[%emt 0:01:50]} 18. Qb3 {[%emt 0:01:52]} Kh8 {[%emt 0:01:52]} 19. Nxb6 {[%emt 0:06:29]} Nxb6 {[%emt 0:00:26]} 20. g4 {[%emt 0:02:24]} Qxg4 {[%emt 0:00:39]} 21. Bg3 {[%emt 0:00:19]} c6 {[%emt 0:01:22]} 22. Re7 {[%emt 0:02:53]} Bg8 {[%emt 0:11:07]} 23. Qd1 {[%emt 0:03:41]} Qg5 {[%emt 0:01:58]} 24. Rxb7 {[%emt 0:04:21]} Nd5 {[%emt 0:01:25]} 25. c4 {[%emt 0:02:18]} Nf4 {[%emt 0:00:58]} 26. Bxf4 {[%emt 0:01:17]} Qxf4 {[%emt 0:00:09]} 27. Bxc6 {[%emt 0:02:56]} Qg5+ {[%emt 0:00:38]} 28. Bg2 {[%emt 0:00:17]} Bxc4 {[%emt 0:00:11]} 29. Qc1 {[%emt 0:01:19]} Rac8 {[%emt 0:02:26]} 30. Qxg5 {[%emt 0:00:24]} fxg5 {[%emt 0:00:15]} 31. Rxa7 {[%emt 0:01:18]} Rfd8 {[%emt 0:00:39]} 32. Rd1 {[%emt 0:01:57]} Rd6 {[%emt 0:01:33]} 33. a3 {[%emt 0:01:08]} Bb3 {[%emt 0:00:20]} 34. Rd2 {[%emt 0:00:12]} Rcd8 {[%emt 0:00:11]} 35. Ra8 {[%emt 0:00:14]} Rxa8 {[%emt 0:00:19]} 36. Bxa8 {[%emt 0:00:10]} Kg8 {[%emt 0:00:22]} 37. Bf3 {[%emt 0:02:59]} Kf7 {[%emt 0:00:33]} 38. Bd1 {[%emt 0:00:25]} Bd5 {[%emt 0:00:28]} 39. b4 {[%emt 0:02:36]} Re6 {[%emt 0:00:46]} 40. Kf1 {[%emt 0:01:31]} Bc4+ {[%emt 0:00:47]} 41. Be2 {[%emt 0:00:22]} Bxe2+ {[%emt 0:00:54]} 42. Rxe2 {[%emt 0:00:13]} Rd6 {[%emt 0:01:12]} 43. Rd2 {[%emt 0:01:12]} Ke6 {[%emt 0:00:11]} 44. Ke2 {[%emt 0:00:31]} Kd5 {[%emt 0:00:30]} 45. Kd3 {[%emt 0:01:45]} Kc6 {[%emt 0:01:29]} 46. Kc4 {[%emt 0:00:57]} h5 {[%emt 0:00:36]} 47. d5+ {[%emt 0:01:02]} Kb6 {[%emt 0:00:13]} 48. Re2 {[%emt 0:00:47]} Rd7 {[%emt 0:01:05]} 49. Re6+ {[%emt 0:00:40]} Kb7 {[%emt 0:00:18]} 50. Kc5 {[%emt 0:01:26]} Rc7+ {[%emt 0:00:30]} 51. Rc6 {[%emt 0:00:08]} Rf7 {[%emt 0:00:13]} 52. Kb5 {[%emt 0:02:49]} Rxf2 {[%emt 0:00:22]} 53. Rg6 {[%emt 0:01:04]} g4 {[%emt 0:00:54]} 54. Rxg7+ {[%emt 0:00:36]} Rf7 {[%emt 0:50:44]} 55. Rxf7+ {[%emt 0:00:18]} Kc8 {[%emt 0:00:00]} 56. Rh7 {[%emt 0:00:07]} g3 {[%emt 0:00:00]} 57. hxg3 {[%emt 0:00:11]} h4 {[%emt 0:00:00]} 58. gxh4 {[%emt 0:00:34]} Kb8 {[%emt 0:00:00]} 59. Kc6 {[%emt 0:00:10]} Ka8 {[%emt 0:00:00]} 60. Kb6 {[%emt 0:00:08]} Kb8 {[%emt 0:00:00]} 61. Rh8# {[%emt 0:00:10]} 1-0

[Event "FIDE WCCC Girls-12 2024"]
[Site "Montesilvano"]
[Date "2024.11.18"]
[Round "3.41"]
[White "Groselj, Mirjam"]
[Black "Dzafic, Merjem"]
[Result "1/2-1/2"]
[ECO "B13"]
[WhiteElo "1470"]
[BlackElo "1568"]
[PlyCount "93"]
[EventDate "2024.11.18"]
[EventType "swiss"]
[EventCountry "ITA"]
[TimeControl "5400+30"]

1. e4 {[%emt 0:00:03]} c6 {[%emt 0:00:12]} 2. d4 {[%emt 0:00:28]} d5 {[%emt 0:00:14]} 3. exd5 {[%emt 0:00:11]} cxd5 {[%emt 0:00:16]} 4. Bd3 {[%emt 0:01:18]} Nc6 {[%emt 0:00:20]} 5. Nf3 {[%emt 0:00:18]} Bg4 {[%emt 0:00:14]} 6. c3 {[%emt 0:00:59]} e6 {[%emt 0:00:30]} 7. O-O {[%emt 0:02:20]} Be7 {[%emt 0:01:55]} 8. Bf4 {[%emt 0:02:37]} Nf6 {[%emt 0:02:35]} 9. Nbd2 {[%emt 0:01:27]} O-O {[%emt 0:02:25]} 10. Re1 {[%emt 0:01:35]} Rc8 {[%emt 0:03:19]} 11. Nf1 {[%emt 0:02:26]} Qb6 {[%emt 0:04:07]} 12. Qd2 {[%emt 0:03:53]} Bxf3 {[%emt 0:04:59]} 13. gxf3 {[%emt 0:00:12]} Rfd8 {[%emt 0:04:00]} 14. Ng3 {[%emt 0:02:56]} h6 {[%emt 0:10:31]} 15. Kh1 {[%emt 0:04:00]} a6 {[%emt 0:15:33]} 16. Rg1 {[%emt 0:03:55]} Kf8 {[%emt 0:18:26]} 17. Ne2 {[%emt 0:09:30]} Bd6 {[%emt 0:08:43]} 18. Be3 {[%emt 0:17:14]} Qc7 {[%emt 0:04:25]} 19. Rg2 {[%emt 0:01:22]} Ne8 {[%emt 0:01:19]} 20. Rag1 {[%emt 0:01:49]} Ne7 {[%emt 0:06:26]} 21. Bxh6 {[%emt 0:02:35]} gxh6 {[%emt 0:03:36]} 22. Qxh6+ {[%emt 0:00:48]} Ng7 {[%emt 0:00:14]} 23. Qh8+ {[%emt 0:01:10]} Ng8 {[%emt 0:00:16]} 24. Qxg7+ {[%emt 0:00:13]} Ke7 {[%emt 0:00:09]} 25. Qg5+ {[%emt 0:05:07]} Nf6 {[%emt 0:00:43]} 26. Ng3 {[%emt 0:02:27]} Rg8 {[%emt 0:00:37]} 27. Qd2 {[%emt 0:00:53]} Bf4 {[%emt 0:01:18]} 28. Qc2 {[%emt 0:02:05]} Rh8 {[%emt 0:00:59]} 29. b3 {[%emt 0:02:31]} Rh6 {[%emt 0:01:04]} 30. Rd1 {[%emt 0:06:49]} Rch8 {[%emt 0:00:15]} 31. Kg1 {[%emt 0:00:36]} Nh5 {[%emt 0:00:41]} 32. Qb2 {[%emt 0:06:10]} Nxg3 {[%emt 0:01:06]} 33. fxg3 {[%emt 0:01:06]} Be3+ {[%emt 0:00:55]} 34. Kh1 {[%emt 0:01:58]} Bg5 {[%emt 0:01:01]} 35. Rf1 {[%emt 0:01:21]} f5 {[%emt 0:00:46]} 36. f4 {[%emt 0:00:15]} Bf6 {[%emt 0:00:17]} 37. c4 {[%emt 0:00:57]} dxc4 {[%emt 0:00:32]} 38. bxc4 {[%emt 0:00:24]} Qc6 {[%emt 0:00:13]} 39. Kg1 {[%emt 0:00:50]} Qd6 {[%emt 0:00:31]} 40. Qxb7+ {[%emt 0:01:41]} Kf8 {[%emt 0:00:39]} 41. Kh1 {[%emt 0:01:15]} Qxd4 {[%emt 0:00:33]} 42. Qb4+ {[%emt 0:00:41]} Be7 {[%emt 0:00:35]} 43. Qd2 {[%emt 0:00:32]} Bf6 {[%emt 0:01:06]} 44. Rb1 {[%emt 0:00:46]} Kf7 {[%emt 0:00:46]} 45. Rc1 {[%emt 0:00:32]} Qb6 {[%emt 0:00:29]} 46. c5 {[%emt 0:00:22]} Qc6 {[%emt 0:00:16]} 47. Kg1 {[%emt 0:00:29]} 1/2-1/2

[Event "FIDE WCCC Girls-12 2024"]
[Site "Montesilvano"]
[Date "2024.11.18"]
[Round "3.42"]
[White "Laurincova, Timea"]
[Black "Liu, Lillian Yu-Ning"]
[Result "1-0"]
[ECO "C47"]
[WhiteElo "1549"]
[BlackElo "1456"]
[PlyCount "99"]
[EventDate "2024.11.18"]
[EventType "swiss"]
[EventCountry "ITA"]
[TimeControl "5400+30"]

1. e4 {[%emt 0:00:02]} e5 {[%emt 0:00:06]} 2. Nf3 {[%emt 0:00:05]} Nc6 {[%emt 0:00:11]} 3. Nc3 {[%emt 0:00:11]} Nf6 {[%emt 0:00:09]} 4. d4 {[%emt 0:00:10]} d5 {[%emt 0:14:48]} 5. dxe5 {[%emt 0:02:30]} Nxe4 {[%emt 0:02:49]} 6. Qxd5 {[%emt 0:04:10]} Qxd5 {[%emt 0:05:56]} 7. Nxd5 {[%emt 0:00:13]} Kd8 {[%emt 0:02:08]} 8. Bd3 {[%emt 0:05:09]} Nc5 {[%emt 0:00:57]} 9. Bg5+ {[%emt 0:00:47]} Be7 {[%emt 0:03:06]} 10. Nxe7 {[%emt 0:01:42]} Nxe7 {[%emt 0:00:27]} 11. O-O-O {[%emt 0:00:17]} Ke8 {[%emt 0:01:05]} 12. Bc4 {[%emt 0:01:07]} Be6 {[%emt 0:04:17]} 13. Bxe6 {[%emt 0:03:23]} Nxe6 {[%emt 0:00:17]} 14. Bxe7 {[%emt 0:00:17]} Kxe7 {[%emt 0:00:10]} 15. Rd2 {[%emt 0:00:21]} c5 {[%emt 0:02:28]} 16. h4 {[%emt 0:01:40]} b5 {[%emt 0:00:59]} 17. Ng5 {[%emt 0:01:59]} a6 {[%emt 0:03:47]} 18. Rhd1 {[%emt 0:02:00]} Rad8 {[%emt 0:01:37]} 19. Rxd8 {[%emt 0:02:08]} Rxd8 {[%emt 0:00:12]} 20. Rxd8 {[%emt 0:02:40]} Nxd8 {[%emt 0:00:12]} 21. Kd2 {[%emt 0:00:43]} Nc6 {[%emt 0:00:36]} 22. f4 {[%emt 0:00:32]} h6 {[%emt 0:00:53]} 23. Ne4 {[%emt 0:00:45]} c4 {[%emt 0:00:24]} 24. Nd6 {[%emt 0:01:29]} f6 {[%emt 0:02:05]} 25. Nf5+ {[%emt 0:04:30]} Kf7 {[%emt 0:00:29]} 26. e6+ {[%emt 0:03:05]} Kxe6 {[%emt 0:01:31]} 27. Nxg7+ {[%emt 0:01:49]} Kf7 {[%emt 0:00:28]} 28. Nf5 {[%emt 0:00:19]} Kg6 {[%emt 0:00:23]} 29. Ne3 {[%emt 0:01:27]} Kh5 {[%emt 0:00:22]} 30. g3 {[%emt 0:01:12]} Kg6 {[%emt 0:04:05]} 31. c3 {[%emt 0:02:21]} Ne7 {[%emt 0:02:46]} 32. Ke2 {[%emt 0:01:04]} Nf5 {[%emt 0:00:55]} 33. h5+ {[%emt 0:02:31]} Kxh5 {[%emt 0:00:25]} 34. Nxf5 {[%emt 0:00:06]} Kg4 {[%emt 0:00:28]} 35. Nxh6+ {[%emt 0:00:18]} Kxg3 {[%emt 0:00:19]} 36. Ke3 {[%emt 0:01:00]} a5 {[%emt 0:01:26]} 37. a3 {[%emt 0:00:22]} Kh4 {[%emt 0:01:07]} 38. Ng8 {[%emt 0:00:16]} f5 {[%emt 0:00:30]} 39. Nf6 {[%emt 0:00:23]} Kg3 {[%emt 0:00:35]} 40. Nd5 {[%emt 0:00:14]} Kg2 {[%emt 0:02:48]} 41. Nc7 {[%emt 0:00:11]} Kf1 {[%emt 0:00:55]} 42. Nxb5 {[%emt 0:00:23]} Ke1 {[%emt 0:00:27]} 43. Nd6 {[%emt 0:00:27]} Kd1 {[%emt 0:00:34]} 44. Nxc4 {[%emt 0:00:09]} a4 {[%emt 0:05:00]} 45. Nb6 {[%emt 0:00:28]} Kc2 {[%emt 0:01:05]} 46. Nxa4 {[%emt 0:00:08]} Kb3 {[%emt 0:00:54]} 47. Nb6 {[%emt 0:00:09]} Kc2 {[%emt 0:03:32]} 48. c4 {[%emt 0:02:04]} Kxb2 {[%emt 0:00:11]} 49. c5 {[%emt 0:00:18]} Kxa3 {[%emt 0:00:18]} 50. c6 {[%emt 0:00:16]} 1-0

[Event "FIDE WCCC Girls-12 2024"]
[Site "Montesilvano"]
[Date "2024.11.18"]
[Round "3.45"]
[White "Jung, Minju"]
[Black "Canossa, Elena"]
[Result "1-0"]
[ECO "C42"]
[WhiteElo "1457"]
[BlackElo "1482"]
[PlyCount "103"]
[EventDate "2024.11.18"]
[EventType "swiss"]
[EventCountry "ITA"]
[TimeControl "5400+30"]

1. e4 {[%emt 0:00:37]} e5 {[%emt 0:00:08]} 2. Nf3 {[%emt 0:00:56]} Nf6 {[%emt 0:00:17]} 3. Nc3 {[%emt 0:01:35]} Bb4 {[%emt 1:31:35]} 4. Nxe5 {[%emt 0:03:10]} O-O {[%emt 0:00:00]} 5. Bc4 {[%emt 0:08:22]} Bxc3 {[%emt 0:00:00]} 6. dxc3 {[%emt 0:05:57]} Nxe4 {[%emt 0:00:00]} 7. O-O {[%emt 0:06:24]} Qf6 {[%emt 0:00:00]} 8. Ng4 {[%emt 0:06:07]} Qf5 {[%emt 0:00:00]} 9. Bd3 {[%emt 0:04:05]} d5 {[%emt 0:00:00]} 10. f3 {[%emt 0:07:12]} Qd7 {[%emt 0:00:00]} 11. c4 {[%emt 0:15:51]} c6 {[%emt 0:00:00]} 12. cxd5 {[%emt 0:03:03]} cxd5 {[%emt 0:00:00]} 13. c4 {[%emt 0:04:56]} f5 {[%emt 0:00:00]} 14. Ne3 {[%emt 0:05:32]} d4 {[%emt 0:01:59]} 15. Nxf5 {[%emt 0:04:51]} Rxf5 {[%emt 0:02:36]} 16. Bxe4 {[%emt 0:00:27]} Rc5 {[%emt 0:00:22]} 17. Qd3 {[%emt 0:01:02]} Rh5 {[%emt 0:00:39]} 18. Bd5+ {[%emt 0:00:59]} Kh8 {[%emt 0:00:20]} 19. Qxd4 {[%emt 0:01:47]} Nc6 {[%emt 0:00:39]} 20. Qc5 {[%emt 0:01:24]} Qe7 {[%emt 0:00:45]} 21. Qxe7 {[%emt 0:00:35]} Nxe7 {[%emt 0:00:07]} 22. Re1 {[%emt 0:00:13]} Bd7 {[%emt 0:01:18]} 23. Rxe7 {[%emt 0:00:16]} Bc6 {[%emt 0:00:29]} 24. Bxc6 {[%emt 0:00:35]} bxc6 {[%emt 0:00:08]} 25. Be3 {[%emt 0:00:44]} a5 {[%emt 0:00:22]} 26. Bd4 {[%emt 0:00:21]} Rg5 {[%emt 0:00:45]} 27. Rae1 {[%emt 0:00:24]} h6 {[%emt 0:00:21]} 28. Re8+ {[%emt 0:00:18]} Rxe8 {[%emt 0:00:07]} 29. Rxe8+ {[%emt 0:00:10]} Kh7 {[%emt 0:00:03]} 30. c5 {[%emt 0:00:40]} Rd5 {[%emt 0:00:32]} 31. Re4 {[%emt 0:00:45]} Kg8 {[%emt 0:00:46]} 32. Rg4 {[%emt 0:00:48]} g5 {[%emt 0:00:27]} 33. h4 {[%emt 0:00:19]} Kh7 {[%emt 0:00:26]} 34. hxg5 {[%emt 0:00:18]} hxg5 {[%emt 0:00:10]} 35. Kf2 {[%emt 0:00:20]} Kg6 {[%emt 0:00:09]} 36. Ke3 {[%emt 0:00:21]} Kf5 {[%emt 0:00:16]} 37. Re4 {[%emt 0:00:53]} Rd7 {[%emt 0:00:48]} 38. g4+ {[%emt 0:00:14]} Kg6 {[%emt 0:00:11]} 39. Re6+ {[%emt 0:00:31]} Kf7 {[%emt 0:00:07]} 40. Rxc6 {[%emt 0:00:19]} Re7+ {[%emt 0:00:25]} 41. Kd3 {[%emt 0:00:14]} Re6 {[%emt 0:00:30]} 42. Rxe6 {[%emt 0:00:13]} Kxe6 {[%emt 0:00:05]} 43. Kc4 {[%emt 0:00:15]} Kd7 {[%emt 0:00:15]} 44. Kd5 {[%emt 0:00:07]} Kc7 {[%emt 0:00:27]} 45. c6 {[%emt 0:00:46]} Kc8 {[%emt 0:00:08]} 46. Kd6 {[%emt 0:00:34]} a4 {[%emt 0:00:20]} 47. c7 {[%emt 0:00:48]} a3 {[%emt 0:00:23]} 48. bxa3 {[%emt 0:00:12]} Kb7 {[%emt 0:00:06]} 49. Kd7 {[%emt 0:00:16]} Ka6 {[%emt 0:00:10]} 50. c8=Q+ {[%emt 0:00:12]} Ka5 {[%emt 0:00:05]} 51. Qb7 {[%emt 0:00:24]} Ka4 {[%emt 0:00:09]} 52. Qb4# {[%emt 0:00:07]} 1-0